bitfinex-derivatives/quotes_SOLF0:USTF0_20250111
["timestamp","ask_amount","ask_price","bid_price","bid_amount"]
[1736554609283,2.6649,187.65,187.64,7.0479043]
[1736554609675,2.6648,187.66,187.64,7.0479043]
[1736554609873,8.5815043,187.73,187.65,7.0479043]
[1736554610077,8.5815043,187.73,187.67,7.0479043]
[1736554610275,8.5815043,187.73,187.65,7.0479043]
[1736554610472,8.5815043,187.73,187.64,7.0479043]
[1736554610473,7.0479043,187.71,187.64,7.0479043]
[1736554610987,2.6649,187.65,187.64,7.0479043]
[1736554613091,7.0479043,187.71,187.64,7.0479043]
[1736554613293,2.6647,187.67,187.66,7.0479043]
[1736554616286,7.0479043,187.71,187.64,7.0479043]
[1736554616490,2.6648,187.66,187.64,7.0479043]
[1736554618101,7.0479043,187.69,187.58,7.0224]
[1736554618299,7.0479043,187.69,187.62,7.0479043]
[1736554618695,7.0479043,187.71,187.64,7.0479043]
[1736554619089,2.6643,187.69,187.64,7.0479043]
[1736554619293,7.0479043,187.71,187.66,7.0479043]
[1736554620200,2.6645,187.68,187.66,7.0479043]
[1736554620499,8.5815043,187.73,187.58,7.0224]
[1736554620698,8.5815043,187.73,187.67,7.0479043]
[1736554620997,2.6644,187.69,187.67,7.0479043]
[1736554621193,5.3259,187.79,187.67,7.0479043]
[1736554621194,5.72240139,187.82,187.67,7.0479043]
[1736554621494,7.0479043,187.79,187.71,7.0479043]
[1736554622102,2.6636,187.74,187.71,7.0479043]
[1736554623395,2.6636,187.74,187.72,7.0479043]
[1736554625505,7.0479043,187.77,187.67,2.6646]
[1736554625695,7.0479043,187.77,187.69,7.0479043]
[1736554625895,2.6635,187.75,187.69,7.0479043]
[1736554626100,7.0479043,187.77,187.68,2.6644]
[1736554626302,7.0479043,187.77,187.69,7.0479043]
[1736554627107,2.664,187.72,187.69,7.0479043]
[1736554628405,4.7373,187.8,187.71,7.0479043]
[1736554628707,7.0479043,187.79,187.71,7.0479043]
[1736554628905,2.6639,187.73,187.69,2.6643]
[1736554629098,2.6639,187.73,187.7,7.0479043]
[1736554633404,2.6639,187.72,187.7,7.0479043]
[1736554634399,2.6637,187.74,187.71,2.664]
[1736554634604,2.6637,187.74,187.72,7.0479043]
[1736554636807,7.0479043,187.77,187.7,7.0479043]
[1736554637306,2.664,187.72,187.7,7.0479043]
[1736554638608,7.0479043,187.79,187.7,9.7120043]
[1736554638805,7.0479043,187.79,187.72,7.0479043]
[1736554639207,2.6637,187.74,187.72,7.0479043]
[1736554640405,2.6629,187.79,187.72,7.0479043]
[1736554640605,148.26685282,187.85,187.78,7.0479043]
[1736554640806,148.26685282,187.85,187.8,7.0479043]
[1736554641206,7.0479043,187.84,187.74,5.4]
[1736554641401,7.0479043,187.84,187.78,7.0479043]
[1736554642101,2.6632,187.78,187.76,7.0479043]
[1736554642302,7.0479043,187.82,187.76,7.0479043]
[1736554643110,2.6632,187.77,187.76,7.0479043]
[1736554645208,7.0479043,187.82,187.74,12.4479043]
[1736554645409,2.6635,187.75,187.74,5.4]
[1736554645800,2.664,187.72,187.69,7.0479043]
[1736554646001,7.0479043,187.76,187.65,5.4]
[1736554646204,7.0479043,187.76,187.69,7.0479043]
[1736554646406,2.6636,187.74,187.69,7.0479043]
[1736554646611,7.0479043,187.74,187.66,2.6647]
[1736554646812,7.0479043,187.74,187.67,7.0479043]
[1736554647412,7.0479043,187.74,187.64,2.6649]
[1736554647712,2.6644,187.69,187.67,7.0479043]
[1736554648710,2.6642,187.7,187.67,7.0479043]
[1736554648909,7.0479043,187.76,187.69,7.0479043]
[1736554649309,2.6641,187.71,187.69,7.0479043]
[1736554650208,4.9031,187.79,187.69,7.0479043]
[1736554650407,4.9031,187.79,187.74,7.0479043]
[1736554650612,7.0479043,187.82,187.76,7.0479043]
[1736554650813,2.6631,187.78,187.76,7.0479043]
[1736554651015,7.0479043,187.82,187.76,7.0479043]
[1736554651313,7.0479043,187.82,187.7,5.42]
[1736554651314,148.26685282,187.87,187.78,7.0479043]
[1736554651512,7.0479043,187.9,187.82,7.0479043]
[1736554652615,7.0479043,187.89,187.82,7.0479043]
[1736554653315,3.1959,187.91,187.8,11.02545851]
[1736554653939,11.02545851,187.89,187.77,11.02545851]
[1736554655868,2.6628,187.8,187.77,11.02545851]
[1736554659016,11.02545851,187.89,187.76,2.6633]
[1736554659215,11.02545851,187.87,187.75,11.02545851]
[1736554659414,11.02545851,187.87,187.74,2.6635]
[1736554659714,1.6123,187.86,187.75,11.02545851]
[1736554659912,2.6632,187.78,187.75,11.02545851]
[1736554662920,2.6633,187.76,187.75,11.02545851]
[1736554663214,1.6123,187.86,187.75,11.02545851]
[1736554663719,2.6632,187.78,187.75,11.02545851]
[1736554665120,2.6628,187.8,187.75,11.02545851]
[1736554665313,2.6628,187.8,187.74,11.02545851]
[1736554665314,1.6123,187.86,187.78,11.02545851]
[1736554666123,2.6627,187.81,187.78,11.02545851]
[1736554667325,2.6621,187.85,187.81,2.6625]
[1736554667621,2.6621,187.85,187.81,11.02545851]
[1736554668220,3.1959,187.91,187.84,11.02545851]
[1736554668617,3.1959,187.91,187.84,13.68765851]
[1736554669225,3.1959,187.91,187.84,11.02545851]
[1736554669522,3.1959,187.91,187.81,11.02545851]
[1736554669721,2.6616,187.88,187.81,13.68805851]
[1736554669926,3.1959,187.91,187.84,11.02545851]
[1736554670423,2.6618,187.87,187.84,11.02545851]
[1736554675225,2.6618,187.87,187.84,13.68765851]
[1736554675416,2.6618,187.87,187.86,7.05345496]
[1736554676423,8.66585496,187.93,187.86,7.05345496]
[1736554676424,1.6124,187.93,187.86,7.05345496]
[1736554676627,1.6124,187.93,187.88,7.05345496]
[1736554677125,83.1,187.94,187.88,7.05345496]
[1736554677724,2.6614,187.9,187.88,7.05345496]
[1736554678131,83.1,187.94,187.88,7.05345496]
[1736554678331,10.18065496,187.97,187.9,7.05345496]
[1736554678831,2.6612,187.92,187.9,7.05345496]
[1736554679631,2.6612,187.91,187.9,7.05345496]
[1736554680036,10.18065496,187.97,187.89,7.05345496]
[1736554680333,2.6613,187.9,187.89,7.05345496]
[1736554680633,7.05345496,187.95,187.85,2.6619]
[1736554680828,2.6616,187.89,187.87,7.05345496]
[1736554681431,2.6616,187.88,187.87,7.05345496]
[1736554681632,7.05345496,187.95,187.87,7.05345496]
[1736554681932,7.05345496,187.95,187.89,7.05345496]
[1736554683133,2.6614,187.9,187.89,7.05345496]
[1736554684639,2.6616,187.89,187.88,7.05345496]
[1736554688740,7.05345496,187.93,187.81,1.604]
[1736554688933,7.05345496,187.91,187.85,7.05345496]
[1736554689133,2.6619,187.86,187.85,7.05345496]
[1736554690838,2.6622,187.84,187.83,7.05345496]
[1736554692438,2.6626,187.82,187.81,7.05345496]
[1736554692642,7.05345496,187.85,187.79,7.05345496]
[1736554693842,7.05345496,187.87,187.79,7.05345496]
[1736554694336,2.6628,187.8,187.79,7.05345496]
[1736554695943,2.663,187.78,187.77,7.05345496]
[1736554697344,2.6629,187.79,187.77,7.05345496]
[1736554697543,2.6629,187.79,187.78,7.05345496]
[1736554701435,3.256,187.83,187.78,7.05345496]
[1736554701642,7.05345496,187.89,187.82,7.05345496]
[1736554701843,18.26452475,187.91,187.84,7.05345496]
[1736554702049,11.21106979,187.91,187.86,7.05345496]
[1736554702243,2.6618,187.87,187.86,7.05345496]
[1736554705347,4.6631,187.91,187.8,5.42]
[1736554705550,4.6631,187.91,187.85,7.05345496]
[1736554707142,2.6619,187.86,187.85,7.05345496]
[1736554707345,7.05345496,187.89,187.83,7.05345496]
[1736554707547,7.05345496,187.89,187.81,7.05345496]
[1736554707751,2.6625,187.82,187.81,7.05345496]
[1736554710757,2.6628,187.8,187.79,7.05345496]
[1736554711455,2.6626,187.81,187.79,7.05345496]
[1736554711654,2.6626,187.81,187.8,7.05345496]
[1736554715861,4.6631,187.91,187.8,7.05345496]
[1736554716059,2.6624,187.83,187.75,4.8539]
[1736554716258,11.71655496,187.91,187.75,4.8539]
[1736554716459,2.6621,187.86,187.82,2.6624]
[1736554716659,4.6631,187.91,187.75,4.8539]
[1736554717160,2.662,187.86,187.82,2.6624]
[1736554717365,2.662,187.86,187.85,7.05345496]
[1736554719259,2.6621,187.85,187.82,2.6624]
[1736554719462,4.6631,187.91,187.84,7.05345496]
[1736554720362,7.05345496,187.88,187.76,5.42]
[1736554720564,7.05345496,187.88,187.81,7.05345496]
[1736554720756,7.05345496,187.86,187.79,7.05345496]
[1736554720954,2.6628,187.8,187.79,7.05345496]
[1736554722364,10.0831,187.91,187.76,5.42]
[1736554722365,2.6632,187.77,187.76,5.42]
[1736554722564,2.6632,187.77,187.76,12.47345496]
[1736554723358,2.6632,187.77,187.76,7.05345496]
[1736554724060,2.6631,187.78,187.76,7.05345496]
[1736554724258,2.6631,187.78,187.77,7.05345496]
[1736554728771,2.6631,187.78,187.74,2.6636]
[1736554729068,2.6631,187.78,187.77,7.05345496]
[1736554732874,2.6626,187.81,187.77,7.05345496]
[1736554733067,7.05345496,187.84,187.77,7.05345496]
[1736554734163,2.6631,187.78,187.77,7.05345496]
[1736554738870,4.7504,187.83,187.72,5.42]
[1736554738871,2.6634,187.76,187.72,5.42]
[1736554739077,2.6634,187.76,187.75,7.05345496]
[1736554741977,7.05345496,187.8,187.66,29.14496523]
[1736554742277,7.05345496,187.78,187.71,7.05345496]
[1736554743067,2.6639,187.72,187.71,7.05345496]
[1736554743280,7.05345496,187.76,187.7,7.05345496]
[1736554743880,2.664,187.71,187.7,7.05345496]
[1736554745287,7.05345496,187.76,187.69,7.05345496]
[1736554745480,7.05345496,187.72,187.67,7.05345496]
[1736554745782,7.05345496,187.72,187.65,7.05345496]
[1736554746776,7.05345496,187.7,187.65,7.05345496]
[1736554747184,2.6651,187.64,187.63,7.05345496]
[1736554748686,7.05345496,187.7,187.58,2.6658]
[1736554748886,2.6652,187.63,187.62,7.05345496]
[1736554752785,3.1862,187.67,187.48,5.42]
[1736554752786,7.05345496,187.64,187.48,5.42]
[1736554752986,7.05345496,187.61,187.54,7.05345496]
[1736554754282,2.6661,187.57,187.52,2.6667]
[1736554754497,2.6661,187.57,187.55,7.05345496]
[1736554755191,2.6661,187.57,187.52,2.6667]
[1736554755490,2.6661,187.57,187.54,7.05345496]
[1736554756191,7.05345496,187.59,187.45,1.5939]
[1736554756386,2.6665,187.54,187.53,7.05345496]
[1736554757788,1.6075,187.62,187.48,5.42]
[1736554757988,7.05345496,187.6,187.54,7.05345496]
[1736554758189,7.05345496,187.58,187.52,7.05345496]
[1736554758382,2.6667,187.53,187.52,7.05345496]
[1736554759191,2.6669,187.52,187.46,5.42]
[1736554759388,2.6669,187.52,187.42,3.1051]
[1736554759687,7.05345496,187.56,187.45,2.6676]
[1736554759889,3.2336,187.55,187.49,7.05345496]
[1736554761092,3.2336,187.55,187.43,5.42]
[1736554761093,4.7499,187.55,187.53,7.05345496]
[1736554761388,7.05345496,187.6,187.53,7.05345496]
[1736554761593,2.6665,187.54,187.53,7.05345496]
[1736554762991,7.05345496,187.6,187.52,7.05345496]
[1736554763786,2.6666,187.53,187.52,7.05345496]
[1736554764788,2.6666,187.53,187.48,2.6673]
[1736554764993,2.6666,187.53,187.52,7.05345496]
[1736554765998,2.6668,187.52,187.48,2.6673]
[1736554766208,2.6668,187.52,187.51,7.05345496]
[1736554767197,7.05345496,187.56,187.44,1.6764]
[1736554767399,2.667,187.5,187.49,7.05345496]
[1736554768101,2.6672,187.49,187.48,7.05345496]
[1736554769304,2.6675,187.47,187.43,2.6679]
[1736554769497,7.05345496,187.52,187.45,7.05345496]
[1736554769698,4.7376,187.55,187.47,7.05345496]
[1736554770000,2.6673,187.48,187.47,7.05345496]
[1736554770601,4.7376,187.55,187.41,2.6682]
[1736554770602,2.6678,187.45,187.41,2.6682]
[1736554770800,2.6678,187.45,187.44,7.05345496]
[1736554771404,7.05345496,187.5,187.43,7.05345496]
[1736554771703,7.05345496,187.48,187.36,7.0548]
[1736554771906,2.6683,187.42,187.41,7.05345496]
[1736554772501,7.05345496,187.48,187.36,7.0548]
[1736554772699,7.05345496,187.48,187.4,7.05345496]
[1736554772700,2.6684,187.41,187.4,7.05345496]
[1736554773100,7.05345496,187.46,187.38,7.05345496]
[1736554773601,8.63245496,187.46,187.38,7.05345496]
[1736554774304,2.6681,187.43,187.42,7.05345496]
[1736554774904,3.2239,187.47,187.42,7.05345496]
[1736554775098,3.2239,187.47,187.44,7.05345496]
[1736554775502,2.6677,187.45,187.44,7.05345496]
[1736554775703,1.579,187.54,187.44,7.05345496]
[1736554775904,7.05345496,187.52,187.44,7.05345496]
[1736554776301,2.6676,187.47,187.44,7.05345496]
[1736554776502,7.05345496,187.52,187.44,7.05345496]
[1736554776907,2.6677,187.46,187.44,7.05345496]
[1736554777106,7.05345496,187.48,187.42,7.05345496]
[1736554778108,2.668,187.44,187.42,7.05345496]
[1736554778608,7.05345496,187.5,187.42,7.05345496]
[1736554778911,2.6679,187.45,187.42,7.05345496]
[1736554779408,2.6679,187.44,187.42,7.05345496]
[1736554779810,1.579,187.54,187.43,2.668]
[1736554779811,2.6675,187.47,187.43,2.668]
[1736554780007,2.6675,187.47,187.45,7.05345496]
[1736554781811,2.6673,187.48,187.45,7.05345496]
[1736554782112,2.6673,187.48,187.47,7.05345496]
[1736554784309,1.579,187.54,187.47,7.05345496]
[1736554784510,3.0745,187.55,187.51,7.05345496]
[1736554784711,83.22,187.56,187.51,7.05345496]
[1736554786214,2.6667,187.52,187.51,7.05345496]
[1736554786717,2.6663,187.56,187.52,2.6667]
[1736554787016,2.6663,187.56,187.55,7.05345496]
[1736554788918,195.0,187.63,187.55,7.05345496]
[1736554789117,59.96263441,187.65,187.58,7.05345496]
[1736554789322,52.90917945,187.65,187.55,11.05427738]
[1736554790021,2.6659,187.59,187.55,11.05427738]
[1736554790919,2.6659,187.58,187.55,11.05427738]
[1736554793413,2.6659,187.58,187.54,2.6663]
[1736554793715,11.05427738,187.64,187.51,11.05427738]
[1736554794121,2.6664,187.55,187.51,13.72117738]
[1736554794817,11.05427738,187.61,187.51,11.05427738]
[1736554795016,1.5696,187.6,187.48,11.05427738]
[1736554795417,2.6668,187.52,187.48,11.05427738]
[1736554795818,2.6669,187.51,187.48,11.05427738]
[1736554797122,3.0658,187.59,187.48,11.05427738]
[1736554797418,2.6668,187.52,187.48,13.72157738]
[1736554798822,3.0658,187.59,187.48,11.05427738]
[1736554799027,11.05427738,187.58,187.46,2.6675]
[1736554799428,2.6664,187.55,187.46,2.6675]
[1736554799726,11.05427738,187.58,187.46,2.6675]
[1736554801522,2.667,187.51,187.46,2.6675]
[1736554802124,16.39527738,187.58,187.45,11.05427738]
[1736554802324,11.05427738,187.55,187.42,11.05427738]
[1736554802525,11.05427738,187.52,187.38,16.49427738]
[1736554802726,2.6679,187.45,187.4,2.6684]
[1736554803230,4.8029,187.51,187.38,11.05427738]
[1736554804431,2.6681,187.43,187.38,13.72297738]
[1736554805128,11.05427738,187.49,187.38,11.05427738]
[1736554806127,2.6683,187.41,187.38,11.05427738]
[1736554808927,2.6686,187.39,187.35,13.72337738]
[1736554809132,11.05427738,187.46,187.35,11.05427738]
[1736554809832,2.6689,187.37,187.35,11.05427738]
[1736554811238,11.05427738,187.46,187.32,11.05427738]
[1736554812332,11.05427738,187.46,187.35,11.05427738]
[1736554812530,11.05427738,187.49,187.38,11.05427738]
[1736554812731,11.05427738,187.49,187.38,13.72297738]
[1736554814135,2.6682,187.42,187.38,13.72297738]
[1736554817032,2.6684,187.41,187.38,11.05427738]
[1736554817232,16.39527738,187.49,187.35,11.05427738]
[1736554817436,11.05427738,187.46,187.35,11.05427738]
[1736554817634,2.6689,187.38,187.35,11.05427738]
[1736554819334,2.6692,187.35,187.32,11.05427738]
[1736554820239,2.6692,187.35,187.32,13.72387738]
[1736554820835,2.669,187.36,187.32,13.72387738]
[1736554824943,2.6689,187.37,187.33,2.6694]
[1736554825937,4.6415,187.44,187.35,11.05427738]
[1736554826144,3.1213,187.44,187.35,11.05427738]
[1736554826439,2.6682,187.42,187.38,2.6687]
[1736554828743,2.6683,187.41,187.37,2.6688]
[1736554832044,1.6425,187.48,187.36,11.05427738]
[1736554832239,2.6686,187.4,187.36,13.72327738]
[1736554832636,1.6425,187.48,187.35,2.6691]
[1736554832637,2.6686,187.39,187.35,2.6691]
[1736554833439,11.05427738,187.46,187.33,13.72357738]
[1736554833440,2.6689,187.37,187.33,13.72357738]
[1736554834036,2.6691,187.36,187.28,5.44]
[1736554834238,2.6691,187.36,187.3,11.05427738]
[1736554834439,3.2601,187.42,187.33,11.05427738]
[1736554834640,2.6686,187.39,187.35,2.6691]
[1736554835438,2.6686,187.39,187.37,7.09055474]
[1736554835643,2.6683,187.41,187.37,9.75935474]
[1736554835844,1.6214,187.42,187.37,7.09055474]
[1736554836340,2.6684,187.41,187.37,7.09055474]
[1736554836541,1.6214,187.42,187.37,7.09055474]
[1736554838046,2.6686,187.4,187.37,7.09055474]
[1736554841644,2.6679,187.44,187.39,7.09055474]
[1736554841846,2.6679,187.44,187.31,5.46]
[1736554841847,3.2944,187.47,187.41,7.09055474]
[1736554843149,2.6681,187.43,187.41,7.09055474]
[1736554843652,3.2944,187.47,187.41,7.09055474]
[1736554843850,2.6682,187.42,187.41,7.09055474]
[1736554845447,3.2944,187.47,187.41,7.09055474]
[1736554845650,3.2052,187.52,187.45,7.09055474]
[1736554845849,3.2052,187.52,187.48,7.09055474]
[1736554846250,2.6669,187.51,187.48,7.09055474]
[1736554846445,3.2052,187.52,187.48,7.09055474]
[1736554846847,1.614,187.52,187.48,7.09055474]
[1736554847049,6.77446218,187.54,187.5,7.09055474]
[1736554847248,6.77446218,187.54,187.49,11.06141455]
[1736554847444,5.17856218,187.54,187.49,11.06141455]
[1736554848246,2.6666,187.53,187.49,13.72851455]
[1736554849153,7.84506218,187.54,187.5,2.667]
[1736554849352,2.6665,187.54,187.52,11.06141455]
[1736554849650,1.6543,187.58,187.52,11.06141455]
[1736554849849,2.6663,187.56,187.52,11.06141455]
[1736554852153,2.6663,187.56,187.52,13.72811455]
[1736554852557,1.5959,187.6,187.52,13.72811455]
[1736554852754,1.5959,187.6,187.54,2.6664]
[1736554852954,1.5556,187.64,187.55,11.06141455]
[1736554853153,2.6656,187.61,187.55,11.06141455]
[1736554853353,1.5556,187.64,187.55,13.72761455]
[1736554854058,2.6655,187.61,187.56,2.666]
[1736554854252,2.6655,187.61,187.55,11.06141455]
[1736554854253,1.5556,187.64,187.58,11.06141455]
[1736554855159,2.6653,187.62,187.58,11.06141455]
[1736554855857,2.6651,187.64,187.58,13.72731455]
[1736554856356,2.6651,187.64,187.59,2.6657]
[1736554857652,1.5862,187.68,187.61,11.06141455]
[1736554857856,1.5854,187.69,187.61,11.06141455]
[1736554858355,2.6647,187.67,187.61,13.72671455]
[1736554858658,1.5854,187.69,187.61,13.72671455]
[1736554859060,11.06141455,187.74,187.61,11.06141455]
[1736554859259,11.06141455,187.74,187.62,2.6653]
[1736554859557,1.5173,187.76,187.64,11.06141455]
[1736554859757,1.5173,187.76,187.65,2.6649]
[1736554860057,1.5173,187.76,187.59,5.44]
[1736554860058,2.6639,187.72,187.67,11.06141455]
[1736554860958,1.5173,187.76,187.67,11.06141455]
[1736554861160,1.5173,187.76,187.64,11.06141455]
[1736554861758,2.6645,187.68,187.64,11.06141455]
[1736554862460,2.6643,187.69,187.64,13.72641455]
[1736554866063,2.6645,187.68,187.64,13.72641455]
[1736554866763,11.06141455,187.74,187.6,2.6655]
[1736554866968,11.06141455,187.71,187.58,11.06141455]
[1736554867164,1.6233,187.7,187.58,11.06141455]
[1736554867359,1.6233,187.7,187.59,2.6657]
[1736554867569,1.525,187.69,187.59,2.6657]
[1736554867761,1.525,187.69,187.58,11.06141455]
[1736554867959,12.65151455,187.68,187.55,16.50141455]
[1736554868165,12.65151455,187.68,187.55,11.06141455]
[1736554868464,2.666,187.58,187.55,11.06141455]
[1736554868769,11.06141455,187.65,187.52,11.06141455]
[1736554869660,2.6661,187.57,187.52,13.72801455]
[1736554870264,2.6662,187.56,187.52,13.72801455]
[1736554871065,2.6663,187.55,187.52,11.06141455]
[1736554871267,11.06141455,187.62,187.52,11.06141455]
[1736554871467,1.5305,187.61,187.49,11.06141455]
[1736554871967,2.6663,187.56,187.49,11.06141455]
[1736554872170,1.5649,187.6,187.5,2.667]
[1736554873570,2.6664,187.55,187.5,2.667]
[1736554874073,2.6664,187.55,187.49,11.06141455]
[1736554874372,2.6664,187.55,187.51,2.6669]
[1736554875878,1.5649,187.6,187.39,4.8041]
[1736554876078,12.63251455,187.59,187.48,11.06141455]
[1736554876280,12.63251455,187.59,187.45,11.06141455]
[1736554876681,2.667,187.51,187.45,13.72901455]
[1736554876875,12.63251455,187.59,187.45,11.06141455]
[1736554877278,2.6673,187.49,187.45,11.06141455]
[1736554877471,12.63251455,187.59,187.45,11.06141455]
[1736554878578,2.6672,187.49,187.45,11.06141455]
[1736554881978,2.6672,187.49,187.45,13.72911455]
[1736554882481,2.667,187.5,187.45,13.72911455]
[1736554882876,2.667,187.5,187.46,2.6676]
[1736554883078,2.667,187.5,187.43,5.44]
[1736554883277,2.6666,187.53,187.48,11.06141455]
[1736554883484,1.5711,187.59,187.49,2.6671]
[1736554885286,2.6666,187.53,187.49,2.6671]
[1736554887183,1.5711,187.59,187.48,11.06141455]
[1736554887380,2.667,187.51,187.48,11.06141455]
[1736554888382,2.6665,187.54,187.48,11.06141455]
[1736554889182,2.6665,187.54,187.5,2.667]
[1736554889688,2.6663,187.56,187.51,13.72821455]
[1736554890489,2.6663,187.55,187.51,13.72821455]
[1736554890683,1.5711,187.59,187.51,11.06141455]
[1736554891188,1.5711,187.59,187.49,11.06141455]
[1736554891588,2.6666,187.54,187.49,11.06141455]
[1736554891989,1.5711,187.59,187.49,11.06141455]
[1736554892186,2.6666,187.53,187.49,13.72851455]
[1736554894188,2.6667,187.52,187.49,13.72851455]
[1736554894492,11.06141455,187.58,187.46,11.06141455]
[1736554894890,11.06141455,187.58,187.46,13.72901455]
[1736554896189,2.6671,187.5,187.47,2.6674]
[1736554896492,11.06141455,187.58,187.46,11.06141455]
[1736554898095,2.6669,187.51,187.48,2.6673]
[1736554898396,1.5711,187.59,187.49,11.06141455]
[1736554900091,2.667,187.5,187.49,11.06141455]
[1736554901100,11.06141455,187.58,187.46,11.06141455]
[1736554901793,2.6672,187.49,187.46,11.06141455]
[1736554903097,11.06141455,187.58,187.46,11.06141455]
[1736554903299,11.06141455,187.58,187.43,13.72931455]
[1736554903300,2.6674,187.47,187.43,13.72931455]
[1736554904199,2.6674,187.47,187.43,11.06141455]
[1736554904399,2.6674,187.47,187.44,2.6678]
[1736554906501,2.6674,187.47,187.43,11.06141455]
[1736554906696,2.6674,187.47,187.43,13.72931455]
[1736554906904,2.6674,187.47,187.39,3.2842]
[1736554906905,11.06141455,187.52,187.39,1.6121]
[1736554907098,4.7564,187.51,187.38,13.73011455]
[1736554908207,11.06141455,187.49,187.38,13.73011455]
[1736554909100,2.6683,187.42,187.38,13.73011455]
[1736554909402,4.7564,187.51,187.41,11.06141455]
[1736554909600,2.6674,187.48,187.41,11.06141455]
[1736554909794,2.6674,187.48,187.44,11.06141455]
[1736554910307,12.65761455,187.56,187.44,11.06141455]
[1736554910308,2.6671,187.5,187.44,11.06141455]
[1736554910703,2.6671,187.5,187.47,11.06141455]
[1736554914806,12.65761455,187.56,187.44,16.50141455]
[1736554915002,12.65761455,187.56,187.44,11.06141455]
[1736554915205,2.6676,187.46,187.42,8.108]
[1736554915603,11.06141455,187.53,187.42,5.44]
[1736554917106,2.6677,187.46,187.42,8.1082]
[1736554917907,2.6678,187.45,187.42,8.1082]
[1736554918105,11.06141455,187.53,187.42,5.44]
[1736554918310,19.18379437,187.56,187.43,11.06141455]
[1736554918512,12.65761455,187.56,187.43,11.06141455]
[1736554918704,12.65761455,187.56,187.45,2.6676]
[1736554920009,12.65761455,187.56,187.43,11.06141455]
[1736554920210,12.65761455,187.56,187.46,2.6675]
[1736554920605,2.6671,187.5,187.46,2.6675]
[1736554921604,2.6672,187.49,187.46,2.6675]
[1736554922114,2.6672,187.49,187.43,11.06141455]
[1736554922310,2.6672,187.49,187.45,2.6677]
[1736554923512,12.65761455,187.56,187.44,11.06141455]
[1736554923910,26.72480033,187.56,187.44,11.06141455]
[1736554924111,2.6667,187.53,187.46,2.6676]
[1736554924415,12.65761455,187.56,187.46,2.6676]
[1736554924713,12.65761455,187.56,187.44,11.06141455]
[1736554924714,1.5962,187.56,187.44,11.06141455]
[1736554926009,2.6669,187.51,187.47,2.6673]
[1736554926610,1.5962,187.56,187.44,11.06141455]
[1736554926815,3.0727,187.57,187.5,11.06141455]
[1736554927410,2.6663,187.55,187.51,2.6669]
[1736554928213,2.6666,187.54,187.5,13.72841455]
[1736554928413,3.0727,187.57,187.5,13.72841455]
[1736554929315,2.6665,187.54,187.5,11.06141455]
[1736554929516,3.0727,187.57,187.51,2.6668]
[1736554929711,195.0,187.6,187.5,11.06141455]
[1736554930120,195.0,187.6,187.52,2.6667]
[1736554932022,1.5229,187.61,187.52,2.6667]
[1736554932215,2.6663,187.55,187.52,2.6667]
[1736554932617,2.6661,187.57,187.53,2.6666]
[1736554932818,1.5229,187.61,187.53,2.6666]
[1736554933216,1.5229,187.61,187.5,11.06141455]
[1736554933412,2.667,187.5,187.47,2.6674]
[1736554933618,2.667,187.5,187.42,1.6287]
[1736554933823,11.06141455,187.56,187.42,1.6287]
[1736554933824,2.6673,187.49,187.45,2.6676]
[1736554934118,3.2526,187.55,187.47,11.06141455]
[1736554934321,6.54164637,187.59,187.5,11.06141455]
[1736554934525,2.6663,187.56,187.52,2.6667]
[1736554934718,3.123,187.61,187.5,11.06141455]
[1736554935623,2.6664,187.55,187.51,2.6669]
[1736554936422,2.6665,187.54,187.49,13.72851455]
[1736554936625,3.123,187.61,187.49,13.72851455]
[1736554937122,2.6666,187.54,187.49,13.72851455]
[1736554938520,2.6666,187.53,187.49,13.72851455]
[1736554939318,2.6667,187.52,187.51,7.07986431]
[1736554939522,7.07986431,187.56,187.49,7.07986431]
[1736554939927,7.07986431,187.54,187.47,7.07986431]
[1736554940327,3.123,187.61,187.51,7.07986431]
[1736554940628,2.6656,187.6,187.59,7.07986431]
[1736554940827,1.6525,187.63,187.57,7.07986431]
[1736554942928,2.6657,187.6,187.57,7.07986431]
[1736554943331,2.6657,187.6,187.56,13.7197019]
[1736554944123,2.6658,187.59,187.56,13.7197019]
[1736554944630,2.6658,187.59,187.56,11.0536019]
[1736554945024,2.666,187.57,187.56,11.0536019]
[1736554945226,11.0536019,187.62,187.5,11.0536019]
[1736554945628,11.0536019,187.62,187.5,13.7205019]
[1736554946234,11.0536019,187.62,187.5,11.0536019]